[Event "Prague Festival Challengers 2024"]
[Site "Prague"]
[Date "2024.03.05"]
[Round "7.5"]
[White "Vaishali, Rameshbabu"]
[Black "Rodshtein, Maxim"]
[Result "0-1"]
[ECO "B23"]
[WhiteElo "2481"]
[BlackElo "2580"]
[Annotator "TA"]
[PlyCount "74"]
[EventDate "2024.02.22"]
[EventType "tourn"]
[EventCountry "CZE"]
[SourceTitle "playchess.com"]
[Source "ChessBase"]
[SourceQuality "1"]
[TimeControl "40/5400+30:1800+30"]

{[%evp 9,74,18,8,15,12,22,9,10,18,0,13,3,42,37,34,42,39,33,64,50,67,31,15,12,20,16,78,79,92,72,85,4,10,0,0,9,10,-13,-2,0,111,102,158,119,131,132,119,77,81,83,196,74,101,103,95,94,102,14,12,0,0,0,0,-130,-95,-5406,-5406]} 1. e4 {[%emt 0:00:17]} c5 {[%emt 0:00:26]} 2. Nc3 {[%emt 0:00:11]} d6 {[%emt 0:02:06]} 3. Bb5+ {[%emt 0:00:22]} Nd7 {[%emt 0:00:42]} 4. d4 {[%emt 0:00:32]} cxd4 {[%emt 0:00:21]} 5. Qxd4 {[%emt 0:00:03]} a6 {[%emt 0:00:12]} 6. Bxd7+ {[%emt 0:00:48]} Bxd7 {[%emt 0:00:07]} 7. Nge2 {[%emt 0:01:44]} e6 {[%emt 0:01:34]} 8. O-O {[%emt 0:12:38] The position is equal.} Nf6 {[%emt 0:03:37][%cal Bg8f6,Bf6g4,Bg4e5,Be5g6][%mdl 32]} 9. a4 {[%emt 0:01:05]} Qc7 {[%emt 0:06:57]} 10. Bg5 {[%emt 0:10:56]} Ng4 {[%emt 0:13:45]} 11. h3 {[%emt 0:03:09]} Ne5 {[%emt 0:03:43]} 12. f4 {[%emt 0:08:15]} h6 {[%emt 0:01:38] Hoping for ...Nc6.} 13. Bh4 {[%emt 0:07:52]} Ng6 {[%emt 0:11:56]} 14. Bg3 {[%emt 0:05:35]} Rc8 {[%emt 0:02:13]} 15. Kh1 {[%emt 0:01:56]} Qc5 {[%emt 0:01:41]} 16. Qd2 {[%emt 0:13:30]} Be7 {[%emt 0:03:36]} 17. Rad1 {[%emt 0:00:24]} Rd8 {[%emt 0:20:19]} (17... b5 $11) 18. Bf2 $16 {[%emt 0:09:42]} Qc7 {[%emt 0:01:21]} 19. Bd4 $36 {[%emt 0:01:02][%mdl 2048] White is on the roll.} O-O {[%emt 0:05:34]} 20. f5 {[%emt 0:08:02]} ({Better is} 20. Ng3 $1 $16) 20... Bg5 $11 {[%emt 0:00:21]} 21. Qd3 {[%emt 0:00:13]} Ne5 {[%emt 0:02:19]} 22. Qg3 {[%emt 0:00:10] And now f6 would win.} Kh7 {[%emt 0:06:03]} 23. h4 {[%emt 0:03:03]} Bf6 {[%emt 0:03:53]} 24. Nf4 {[%emt 0:00:19][%cal Oa4a5,Be2f4,Bf4d5,Bd5f4,Bf4h5][%mdl 32]} Bc6 {[%emt 0:00:46]} (24... Rg8 $11) 25. fxe6 $16 {[%emt 0:04:59]} Qe7 {[%emt 0:00:05]} (25... Rde8 $142) 26. Ncd5 {[%emt 0:00:33]} Bxd5 {[%emt 0:00:06]} 27. Nxd5 {[%emt 0:00:09]} Qxe6 {[%emt 0:00:05]} 28. Rf5 {[%emt 0:00:38] Nxf6+ would now be deadly.} Be7 {[%emt 0:02:33]} 29. Rdf1 {[%emt 0:01:41][%cal Od5f4] Nf4! is the strong threat.} Rc8 {[%emt 0:02:20]} (29... f6 $16 {keeps fighting.}) 30. c3 {[%emt 0:02:41]} (30. Nf4 $1 $18 {[%cal Rf4e6] and the rest is easy.} Bxh4 31. Qxh4) 30... Bd8 {[%emt 0:00:17]} 31. Nf4 {[%emt 0:00:55]} Qc4 {[%emt 0:02:47][%csl LRa4,LRf1] [#]} 32. Nh5 $1 {[%emt 0:01:21]} Rg8 {[%emt 0:00:31] [#]} 33. Bxe5 {[%emt 0:01:18]} (33. b3 $1 $16 {[%cal Rb3c4]} Qe2 34. Bxe5 dxe5 35. Re1 (35. Qxe5 f6 $11)) 33... dxe5 $11 {[%emt 0:00:02]} 34. Rxf7 {[%emt 0:00:06]} Rc7 {[%emt 0:00:05]} 35. Rf8 {[%emt 0:01:16]} Qxe4 {[%emt 0:00:55] White must now prevent ...Rc4.} 36. R1f7 {[%emt 0:00:32]} (36. Nf6+ $11 Bxf6 37. R1xf6 Rxf8 38. Rxf8) 36... Bxh4 {[%emt 0:01:54]} (36... Qxh4+ 37. Qxh4 Bxh4 38. Rxc7 $14) 37. Rxc7 {[%emt 0:00:31][%mdl 8192]} (37. Nf6+ $17 Bxf6 38. Rxf6) 37... Qb1+ {[%emt 0:00:17] Weighted Error Value: White=0.39/Black=0.19 (very precise) .  Loses game:     	White=1     	---        Mistake:       	White=4     	Black=4      Inaccurate:     	White=2     	Black=3      OK:         	White=10    	Black=13     Best:        	White=2     	Black=5      Strong:       	White=1     	---} (37... Bxg3 $2 {too greedy.} 38. Nf6+ Kg6 39. Nxe4 $18) 0-1

[Event "Prague Festival Challengers 2024"]
[Site "Prague"]
[Date "2024.03.06"]
[Round "8.1"]
[White "Gurel, Ediz"]
[Black "L'Ami, Erwin"]
[Result "1/2-1/2"]
[ECO "C69"]
[WhiteElo "2560"]
[BlackElo "2627"]
[Annotator "RC"]
[PlyCount "113"]
[EventDate "2024.02.22"]
[EventType "tourn"]
[EventCountry "CZE"]
[SourceTitle "playchess.com"]
[Source "ChessBase"]
[SourceQuality "1"]
[TimeControl "40/5400+30:1800+30"]

1. e4 {[%emt 0:00:04]} e5 {[%emt 0:00:11]} 2. Nf3 {[%emt 0:00:10]} Nc6 {[%emt 0:00:10]} 3. Bb5 {[%emt 0:00:08]} a6 {[%emt 0:00:16]} 4. Bxc6 {[%emt 0:00:14]} dxc6 {[%emt 0:00:12]} 5. O-O {[%emt 0:00:07]} f6 {[%emt 0:00:55]} 6. d4 {[%emt 0:00:27]} exd4 {[%emt 0:00:18]} 7. Nxd4 {[%emt 0:00:20]} c5 {[%emt 0:00:11]} 8. Ne2 {[%emt 0:03:13]} Qxd1 {[%emt 0:01:15]} 9. Rxd1 {[%emt 0:00:03]} Be6 {[%emt 0:03:12]} 10. Nbc3 {[%emt 0:03:44]} Ne7 {[%emt 0:03:42]} 11. Bf4 {[%emt 0:04:42]} Rc8 {[%emt 0:01:54]} 12. Bg3 {[%emt 0:02:41]} Nc6 {[%emt 0:20:33]} 13. Nf4 {[%emt 0:03:55]} Bf7 {[%emt 0:00:53]} 14. Nfd5 {[%emt 0:00:16]} Ne5 {[%emt 0:02:03]} 15. f4 {[%emt 0:06:54]} Nc6 {[%emt 0:03:33]} 16. f5 {[%emt 0:04:53]} Ne5 {[%emt 0:10:40]} 17. Bxe5 {[%emt 0:04:52]} fxe5 {[%emt 0:00:15]} 18. Kf2 {[%emt 0:01:55]} h5 {[%emt 0:02:29]} 19. Ne2 {[%emt 0:04:11]} c4 {[%emt 0:04:00]} 20. Ng1 {[%emt 0:04:29]} Bc5+ {[%emt 0:02:47]} 21. Ne3 {[%emt 0:00:05]} g6 {[%emt 0:03:17]} 22. Nf3 {[%emt 0:04:12]} gxf5 {[%emt 0:03:42]} 23. exf5 {[%emt 0:00:04]} O-O {[%emt 0:02:57]} 24. Ke2 {[%emt 0:03:36]} Be8 {[%emt 0:10:03]} 25. Rd5 {[%emt 0:07:40]} Bxe3 {[%emt 0:03:08]} 26. Kxe3 {[%emt 0:00:03]} Rxf5 {[%emt 0:00:09]} 27. Rxe5 {[%emt 0:00:15]} Bg6 {[%emt 0:00:56]} 28. Kd2 {[%emt 0:02:29]} Rcf8 {[%emt 0:06:40]} 29. Rae1 {[%emt 0:01:11]} Kg7 {[%emt 0:01:19]} 30. Rxf5 {[%emt 0:01:58]} Rxf5 {[%emt 0:00:57]} 31. Re7+ {[%emt 0:00:36]} Rf7 {[%emt 0:00:28]} 32. Rxf7+ {[%emt 0:00:04]} Bxf7 {[%emt 0:00:06]} 33. c3 {[%emt 0:01:47]} Kf6 {[%emt 0:01:48]} 34. Ke3 {[%emt 0:00:05]} Kf5 {[%emt 0:00:33]} 35. Nd4+ {[%emt 0:04:03]} Kg4 {[%emt 0:00:54]} 36. Ne2 {[%emt 0:01:32]} Bd5 {[%emt 0:04:13]} 37. h3+ {[%emt 0:01:23]} Kf5 {[%emt 0:01:14]} 38. Ng3+ {[%emt 0:01:55]} Kg5 {[%emt 0:01:37]} 39. Ne4+ {[%emt 0:00:26]} Kh4 {[%emt 0:03:42]} 40. Kf4 {[%emt 0:03:28]} Bxe4 {[%emt 0:02:07]} 41. Kxe4 {[%emt 0:30:01]} Kg3 {[%emt 0:30:12]} 42. Kf5 {[%emt 0:00:03]} b5 {[%emt 0:00:00]} 43. Kg5 {[%emt 0:00:00]} h4 {[%emt 0:00:00]} 44. a4 {[%emt 0:00:00]} bxa4 {[%emt 0:00:00]} 45. Kh5 {[%emt 0:00:00]} a5 {[%emt 0:00:00]} 46. Kg5 {[%emt 0:00:00]} c5 {[%emt 0:00:00]} 47. Kh5 {[%emt 0:00:00]} Kxg2 {[%emt 0:00:00]} 48. Kxh4 {[%emt 0:00:00]} Kf3 {[%emt 0:00:00]} 49. Kg5 {[%emt 0:00:00]} Ke4 {[%emt 0:00:00]} 50. h4 {[%emt 0:00:00]} Kd3 {[%emt 0:00:00]} 51. h5 {[%emt 0:00:00]} Kc2 {[%emt 0:00:00]} 52. h6 {[%emt 0:00:00]} Kxb2 {[%emt 0:00:00]} 53. h7 {[%emt 0:00:00]} a3 {[%emt 0:00:00]} 54. h8=Q {[%emt 0:00:00]} a2 {[%emt 0:00:00]} 55. Qh2+ {[%emt 0:00:00]} Kb1 {[%emt 0:00:00]} 56. Qg1+ {[%emt 0:00:00]} Kb2 {[%emt 0:00:00]} 57. Qf2+ {[%emt 0:00:00]} 1/2-1/2

[Event "Prague Festival Challengers 2024"]
[Site "Prague"]
[Date "2024.03.06"]
[Round "8.2"]
[White "Mishra, Abhimanyu"]
[Black "Stalmach, Richard"]
[Result "1/2-1/2"]
[ECO "B92"]
[WhiteElo "2627"]
[BlackElo "2433"]
[Annotator "TA"]
[PlyCount "47"]
[EventDate "2024.02.22"]
[EventType "tourn"]
[EventCountry "CZE"]
[SourceTitle "playchess.com"]
[Source "ChessBase"]
[SourceQuality "1"]
[TimeControl "40/5400+30:1800+30"]

{[%evp 15,47,9,18,18,16,22,27,18,10,11,25,4,10,12,24,8,18,18,14,0,0,0,0,0,0,0,0,0,0,0,0,0,0,0]} 1. e4 {[%emt 0:00:02]} c5 {[%emt 0:00:15]} 2. Nf3 {[%emt 0:00:06]} d6 {[%emt 0:00:17]} 3. d4 {[%emt 0:00:09]} cxd4 {[%emt 0:00:05]} 4. Nxd4 {[%emt 0:00:03]} Nf6 {[%emt 0:00:05]} 5. Nc3 {[%emt 0:00:08]} a6 {[%emt 0:00:13]} 6. Be2 {[%emt 0:00:31]} e5 {[%emt 0:00:09]} 7. Nb3 {[%emt 0:00:21]} Be6 {[%emt 0:00:06]} 8. Be3 {[%emt 0:00:40]} Nbd7 {[%emt 0:00:13]} 9. f4 {[%emt 0:00:40]} Qc7 {[%emt 0:02:18]} 10. f5 {[%emt 0:00:50]} Bc4 {[%emt 0:00:22]} 11. Bxc4 {[%emt 0:00:50] White has an edge.} Qxc4 {[%emt 0:00:07]} 12. Qf3 {[%emt 0:00:06]} b5 {[%emt 0:04:30]} 13. a3 {[%emt 0:00:33]} h5 {[%emt 0:06:52]} 14. Nd2 {[%emt 0:03:20]} Qc6 {[%emt 0:05:06]} 15. O-O {[%emt 0:00:19]} Be7 {[%emt 0:01:13] The position is equal.} 16. Kh1 {[%emt 0:01:13]} Bd8 {[%emt 0:10:00]} 17. Nd5 {[%emt 0:15:32]} (17. Rac1 {simplifies} Bb6 18. Nd5 Bxe3 19. Nxe3 Rc8 20. c4) 17... Qxc2 {[%emt 0:21:22]} 18. Rfc1 {[%emt 0:14:37]} Qxb2 {[%emt 0:00:24][%cal Oa8c8] ...Rc8! is the strong threat.} 19. Rab1 {[%emt 0:29:20]} Qxa3 {[%emt 0:06:08]} 20. Ra1 $1 {[%emt 0:00:21]} Qb2 $1 {[%emt 0:00:03]} (20... Qd3 $2 21. Nb4 $18) 21. Rab1 {[%emt 0:00:10]} (21. Rcb1 $5 Qc2 $8 22. Rc1 $11) 21... Qa3 {[%emt 0:00:19] [#] Threatens to win with ...Nxd5.} 22. Ra1 $1 {[%emt 0:00:07]} Qb2 $1 {[%emt 0:00:03] And now ...Nxd5 would win.} ({Not} 22... Qd3 $2 23. Nb4 $18) 23. Rab1 {[%emt 0:00:04]} (23. Rcb1 $5 Qc2 $8 24. Rc1 Qb2 $11 (24... Qd3 $2 25. Nb4 $18)) 23... Qa3 {[%emt 0:00:05] aiming for ...Nxd5.} 24. Ra1 $1 {[%emt 0:00:10] Not much happened in this game.   Weighted Error Value: White=0.02 (flawless) /Black=0.02 (flawless) .  OK:         	White=4     	Black=7      Strong:       	White=3     	Black=2} 1/2-1/2

[Event "Prague Festival Challengers 2024"]
[Site "Prague"]
[Date "2024.03.06"]
[Round "8.3"]
[White "Santos Latasa, Jaime"]
[Black "Korobov, Anton"]
[Result "1-0"]
[ECO "C11"]
[WhiteElo "2615"]
[BlackElo "2663"]
[Annotator "TA"]
[PlyCount "99"]
[EventDate "2024.02.22"]
[EventType "tourn"]
[EventCountry "CZE"]
[SourceTitle "playchess.com"]
[Source "ChessBase"]
[SourceQuality "1"]
[TimeControl "40/5400+30:1800+30"]

{[%evp 14,99,17,10,15,25,35,26,29,22,43,47,52,37,40,43,45,44,49,45,64,46,43,38,43,43,47,54,50,50,52,38,46,50,41,45,47,-10,60,55,52,52,66,52,66,66,74,74,86,86,86,86,79,79,79,79,79,67,79,32,79,79,91,91,93,75,104,104,123,130,126,119,126,126,175,143,172,142,545,551,492,480,634,613,613,421,558,447]} 1. e4 {[%emt 0:00:03][%cal Be2e4,Be4e5][%mdl 32]} e6 {[%emt 0:00:07]} 2. d4 {[%emt 0:00:15]} d5 {[%emt 0:00:08]} 3. Nc3 {[%emt 0:00:03]} Nf6 {[%emt 0:00:09]} 4. e5 {[%emt 0:00:18]} Nfd7 {[%emt 0:00:10]} 5. f4 {[%emt 0:00:04]} c5 {[%emt 0:00:07]} 6. Nf3 {[%emt 0:00:03]} Nc6 {[%emt 0:00:06]} 7. Be3 {[%emt 0:00:05]} a6 {[%emt 0:00:05]} 8. a3 {[%emt 0:01:45]} Be7 {[%emt 0:05:09]} 9. dxc5 {[%emt 0:02:15]} Nxc5 {[%emt 0:03:39]} 10. b4 {[%emt 0:03:14]} Nd7 {[%emt 0:01:18] Weiß hat minimalen Vorteil.} 11. Bd3 {[%emt 0:00:20]} b5 {[%emt 0:02:48]} 12. O-O {[%emt 0:05:30]} O-O {[%emt 0:03:47]} 13. Nd4 {[%emt 0:01:25]} Nxd4 {[%emt 0:01:08]} 14. Bxd4 {[%emt 0:00:05]} Nb8 {[%emt 0:01:45]} 15. Bf2 {[%emt 0:11:08]} f5 {[%emt 0:04:33]} 16. Ne2 {[%emt 0:02:36]} Bd7 {[%emt 0:02:49]} 17. Nd4 {[%emt 0:02:19]} Nc6 {[%emt 0:00:45]} 18. Nxc6 {[%emt 0:01:18]} Bxc6 {[%emt 0:00:05]} 19. Bd4 {[%emt 0:00:04]} Rf7 {[%emt 0:06:33][%cal Bf8f7,Bf7g7,Bg7g6][%mdl 32]} 20. g4 {[%emt 0:04:40]} g6 {[%emt 0:01:38]} 21. gxf5 {[%emt 0:03:07]} gxf5 {[%emt 0:00:40]} 22. Kf2 {[%emt 0:00:11]} (22. Kh1 {vereinfacht} Rg7 23. Rg1 Bf8 24. Rxg7+ Bxg7 25. Qh5) 22... Rg7 {[%emt 0:06:16]} 23. Rg1 {[%emt 0:00:43]} Rg6 {[%emt 0:03:31]} 24. Qh5 {[%emt 0:02:08]} Be8 {[%emt 0:01:34]} 25. Ke3 {[%emt 0:13:21]} (25. c3 $14) 25... Bf8 {[%emt 0:04:54]} ({Besser ist} 25... a5 $11) 26. c3 {[%emt 0:09:15]} Rc8 {[%emt 0:03:45]} 27. Qh3 {[%emt 0:01:25]} Rc6 {[%emt 0:04:21]} 28. Be2 {[%emt 0:03:49]} Qc8 {[%emt 0:03:07] ...Rxc3+ wäre nun fies.} 29. Kd2 {[%emt 0:01:15]} Rc7 {[%emt 0:01:34]} 30. Bh5 {[%emt 0:02:05]} Rxg1 {[%emt 0:00:24]} 31. Rxg1+ {[%emt 0:00:05]} Rg7 {[%emt 0:00:06] Schwarz hat schwache schwarze Felder} 32. Rxg7+ {[%emt 0:00:19]} Kxg7 {[%emt 0:01:44]} 33. Be2 {[%emt 0:01:23]} Be7 {[%emt 0:02:45]} 34. Bf2 {[%emt 0:11:23]} Qd8 {[%emt 0:04:32]} 35. Qg3+ {[%emt 0:00:33]} Kf8 {[%emt 0:03:31][%cal Od5d4,Bg7f8,Bf8g8,Bg8f7][%mdl 32]} 36. Qe3 {[%emt 0:00:24] Weiß steht aktiver.} ({Vorzuziehen ist} 36. Kc2 $16) 36... Qc7 {[%emt 0:00:48]} (36... d4 $14 37. cxd4 (37. Qxd4 Qa8 $11) 37... Bc6) 37. Qh3 $16 {[%emt 0:01:11]} Kg8 {[%emt 0:03:02]} 38. Bh4 {[%emt 0:00:41]} Bf8 {[%emt 0:00:05]} 39. Qg2+ {[%emt 0:05:31]} Qg7 {[%emt 0:00:48]} 40. Qf2 {[%emt 0:00:56]} (40. Qg3 {vereinfacht} Qxg3 41. hxg3 Kg7 42. Bf6+) 40... Qc7 {[%emt 0:00:11] Wehrt Qb6 ab} 41. Qg1+ {[%emt 0:31:01]} Bg6 {[%emt 0:33:28]} 42. Bg5 {[%emt 0:04:38]} Kf7 {[%emt 0:04:32]} 43. h4 {[%emt 0:01:37][%cal Bh2h4,Bh4h5][%mdl 32] Droht h5 und aus.} Ke8 {[%emt 0:04:02]} (43... h5 $16 44. Kc2 Qb7) 44. h5 {[%emt 0:04:26]} Bf7 {[%emt 0:00:03] [#]} 45. a4 $1 {[%emt 0:00:52]} bxa4 {[%emt 0:05:40][%mdl 8192] [#] Führt Schwarz ins Verderben.} (45... Kd7 $16 {ist eine bessere Chance.}) 46. Qa1 $1 $18 {[%emt 0:00:32] Weiß steht klar auf Gewinn.} (46. Bxa6 Bxh5 47. Bb5+ Kf7 48. Bxa4 h6 $11) 46... Be7 {[%emt 0:00:11]} 47. Qxa4+ {[%emt 0:01:08]} ({Und nicht} 47. Bxa6 Bxg5 48. Qxa4+ (48. fxg5 Bxh5 49. Qxa4+ Kf7 $11) 48... Ke7 49. fxg5 Qxe5 $11) 47... Kf8 {[%emt 0:00:47]} 48. Bh6+ {[%emt 0:01:16]} ({Weniger gut wäre} 48. Qxa6 Bxg5 49. fxg5 Qxe5 50. Qa8+ Be8 $16) 48... Kg8 {[%emt 0:00:02]} 49. Qxa6 {[%emt 0:00:17]} Qd8 {[%emt 0:00:25]} 50. Qa1 {[%emt 0:00:51] Gewichteter Fehlerwert: Weiß=0.11 (sehr präzise) /Schwarz=0.27 (präzise) .  Verlustzug:     	---       	Schwarz=1     Fehler:       	Weiß=2     	Schwarz=3     Ungenau:       	---       	Schwarz=2     OK:         	Weiß=23    	Schwarz=10    Bester:       	Weiß=1     	Schwarz=2     Stark:        	Weiß=2     	---} 1-0

[Event "Prague Festival Challengers 2024"]
[Site "Prague"]
[Date "2024.03.06"]
[Round "8.4"]
[White "Finek, Vaclav"]
[Black "Vaishali, Rameshbabu"]
[Result "1/2-1/2"]
[ECO "E11"]
[WhiteElo "2416"]
[BlackElo "2481"]
[Annotator "TA"]
[PlyCount "84"]
[EventDate "2024.02.22"]
[EventType "tourn"]
[EventCountry "CZE"]
[SourceTitle "playchess.com"]
[Source "ChessBase"]
[SourceQuality "1"]
[TimeControl "40/5400+30:1800+30"]

{[%evp 11,84,4,5,11,8,1,30,17,25,0,17,3,22,0,0,0,0,0,0,0,58,-27,-22,-84,-97,-82,-62,-64,-30,-35,-21,-43,-37,-80,-93,-99,-89,-103,-110,-99,-103,-127,-120,-143,-136,-136,-136,-136,-136,-136,-136,-136,-54,-54,-54,-54,-54,-54,-54,-54,0,0,0,-52,-52,-52,-52,-52,-32,-15,-15,-15,0,0,0]} 1. d4 {[%emt 0:00:02]} Nf6 {[%emt 0:00:28]} 2. c4 {[%emt 0:00:06]} e6 {[%emt 0:00:04]} 3. g3 {[%emt 0:00:14]} d5 {[%emt 0:00:16]} 4. Nf3 {[%emt 0:00:05]} Bb4+ {[%emt 0:00:16]} 5. Bd2 {[%emt 0:00:05]} Be7 {[%emt 0:00:11]} 6. Bg2 {[%emt 0:00:04]} c6 {[%emt 0:00:26]} 7. O-O {[%emt 0:00:18]} Nbd7 {[%emt 0:00:19]} 8. Qc2 {[%emt 0:00:11]} Ne4 {[%emt 0:00:38]} 9. Nc3 {[%emt 0:00:21] White has an edge.} f5 {[%emt 0:00:17]} 10. Bf4 {[%emt 0:00:13] [#] Strongly threatening cxd5.} g5 {[%emt 0:01:20]} 11. Be3 {[%emt 0:07:13]} h5 {[%emt 0:01:57][%cal Bh7h5,Bh5h4,Bh4h3][%mdl 32]} 12. Nxe4 {[%emt 0:14:11]} dxe4 {[%emt 0:00:20]} 13. Ne5 {[%emt 0:00:47]} Nxe5 {[%emt 0:02:46]} 14. dxe5 {[%emt 0:00:11]} Qc7 {[%emt 0:00:54]} 15. Rad1 {[%emt 0:00:27][%cal Og2e4]} c5 {[%emt 0:03:44]} (15... Rg8 $11) 16. Qc3 {[%emt 0:06:09]} (16. Bxe4 $1 $14 fxe4 17. Qxe4) 16... h4 $11 {[%emt 0:04:38]} 17. Rd2 {[%emt 0:14:27] [#]} (17. gxh4 $11 Rxh4 18. f3) 17... h3 $1 $17 {[%emt 0:33:51]} 18. Bh1 {[%emt 0:00:42]} Rg8 {[%emt 0:05:32]} 19. Rfd1 $1 {[%emt 0:13:16]} b6 {[%emt 0:13:32]} 20. Kf1 {[%emt 0:05:05]} Bb7 {[%emt 0:02:16]} (20... Rb8 $5) 21. f3 {[%emt 0:02:14]} exf3 {[%emt 0:04:41]} 22. exf3 {[%emt 0:05:40]} Rd8 {[%emt 0:02:03]} 23. Rxd8+ {[%emt 0:02:35]} Bxd8 {[%emt 0:00:02]} 24. Ke2 {[%emt 0:08:06]} Be7 {[%emt 0:02:03]} 25. b3 {[%emt 0:00:05]} Kf7 {[%emt 0:03:44]} 26. Bc1 {[%emt 0:01:04]} Bc6 {[%emt 0:04:50]} 27. Bb2 {[%emt 0:03:43]} Rd8 {[%emt 0:02:44]} 28. Rxd8 {[%emt 0:00:14]} Qxd8 {[%emt 0:01:13]} 29. Qd3 {[%emt 0:00:55]} Qxd3+ {[%emt 0:00:00]} 30. Kxd3 {[%emt 0:00:30][%mdl 4096] Endgame. KBB-KBB} Kg6 {[%emt 0:00:18]} 31. Bc1 {[%emt 0:02:15]} Bf8 {[%emt 0:00:43]} (31... f4 $17 32. g4 (32. gxf4 $2 {perishes.} g4 $19) 32... b5) 32. Bxg5 $1 $15 {[%emt 0:02:41]} Bxf3 {[%emt 0:00:57]} 33. Bxf3 {[%emt 0:00:05]} Kxg5 {[%emt 0:00:03] KB-KB} 34. Be2 {[%emt 0:01:05]} Bg7 {[%emt 0:04:10]} 35. Bf1 {[%emt 0:00:08]} Kg4 {[%emt 0:00:10]} 36. Be2+ {[%emt 0:00:05]} Kg5 {[%emt 0:00:03]} 37. Bf1 {[%emt 0:00:10]} Bxe5 {[%emt 0:00:04]} 38. Bxh3 {[%emt 0:00:33]} Bd4 {[%emt 0:00:05]} 39. Bg2 {[%emt 0:00:12]} e5 {[%emt 0:00:45]} 40. h3 {[%emt 0:04:44]} Bf2 {[%emt 0:04:12] The position is equal.} 41. g4 {[%emt 0:30:26]} Kf4 {[%emt 0:32:18]} 42. gxf5 {[%emt 0:00:17]} Kxf5 {[%emt 0:00:04] Weighted Error Value: White=0.11 (very precise) /Black=0.10 (very precise) .  Mistake:       	White=2     	Black=2      Inaccurate:     	White=1     	Black=1      OK:         	White=12    	Black=18     Best:        	White=6     	Black=1      Strong:       	White=2     	Black=1} 1/2-1/2